[Event "Austrian Bundesliga 2023-24"]
[Site "Austria"]
[Date "2024.03.24"]
[Round "11.25"]
[White "Markus, Robert"]
[Black "Janzelj, Tim"]
[Result "1-0"]
[ECO "D10"]
[WhiteElo "2595"]
[BlackElo "2403"]
[Annotator "TA"]
[PlyCount "77"]
[EventDate "2023.10.21"]
[EventType "team-tourn"]
[EventCountry "AUT"]
[SourceTitle "playchess.com"]
[Source "ChessBase"]
[SourceQuality "1"]
[TimeControl "40/5400+30:1800+30"]

{[%evp 10,77,24,29,18,22,35,21,19,36,34,22,21,11,6,19,19,6,40,24,172,172,237,228,227,219,297,283,300,283,334,333,298,257,323,289,586,388,378,301,300,289,289,281,298,325,314,291,366,260,278,285,374,330,455,438,736,406,886,921,1331,1330,1206,563,558,544,707,572,532,531]} 1. d4 {[%emt 0:00:03]} d5 {[%emt 0:00:08]} 2. c4 {[%emt 0:00:06]} c6 {[%emt 0:00:06]} 3. Nc3 {[%emt 0:00:05]} Nf6 {[%emt 0:00:05]} 4. e3 {[%emt 0:00:06]} Bf5 {[%emt 0:00:33]} 5. cxd5 {[%emt 0:01:48]} cxd5 {[%emt 0:00:07]} 6. Qb3 {[%emt 0:00:03]} Nc6 {[%emt 0:00:15]} 7. Qxb7 {[%emt 0:00:08]} Bd7 {[%emt 0:00:06] [#] aiming for ...Rb8.} 8. Qb3 {[%emt 0:00:06][%cal Og1f3]} Rb8 {[%emt 0:00:35] The position is equal.} 9. Qd1 {[%emt 0:00:07]} e5 {[%emt 0:01:09]} 10. Nge2 {[%emt 0:01:36]} Bd6 {[%emt 0:13:09]} 11. dxe5 {[%emt 0:01:43]} Bxe5 {[%emt 0:00:16]} 12. g3 {[%emt 0:10:14]} Bf5 {[%emt 0:21:28]} 13. Bg2 {[%emt 0:05:10]} Nb4 {[%emt 0:03:18]} 14. O-O {[%emt 0:00:34] Threatening a3.} Nc2 {[%emt 0:07:23] A mistake that costs the game.} (14... O-O $11) 15. e4 $1 $18 {[%emt 0:11:28]} Nxa1 {[%emt 0:00:20]} (15... Nxe4 $142 16. Qxc2 Nxc3 17. Qxf5 Nxe2+ 18. Kh1 Qf6 19. Qxf6 gxf6) 16. exf5 {[%emt 0:00:05]} O-O {[%emt 0:03:46] [#]} 17. Bf4 $1 {[%emt 0:02:05]} (17. Bxd5 Nxd5 18. Nxd5 Nc2 $16) 17... Bxf4 {[%emt 0:04:10]} 18. Nxf4 {[%emt 0:02:10]} d4 {[%emt 0:00:16]} 19. Ncd5 {[%emt 0:15:46]} (19. Qxa1 dxc3 20. bxc3 Qc8 $17) 19... Nxd5 {[%emt 0:01:00]} 20. Bxd5 {[%emt 0:03:59][%cal Bg2d5,Bd5c4,Bc4b3][%mdl 32]} (20. Nxd5 Rb5 $18) 20... Rb5 {[%emt 0:18:45]} 21. Bc4 {[%emt 0:04:14]} ({Worse is} 21. Qxa1 Rxd5 22. Nxd5 Qxd5 $15) 21... Rxb2 {[%emt 0:02:40]} 22. Qxa1 {[%emt 0:00:13]} Rd2 {[%emt 0:00:18]} (22... Rb4 {is a better defense.}) 23. Qe1 {[%emt 0:02:28]} Rc2 {[%emt 0:03:33][%cal Bd2c2,Bc2c5,Bc5f5][%mdl 32]} 24. Bb3 {[%emt 0:06:19]} Rc5 {[%emt 0:00:41]} 25. Qb4 {[%emt 0:05:37]} Rxf5 {[%emt 0:06:35] Black is weak on the light squares} 26. Rd1 {[%emt 0:00:44][%cal Bf1d1,Bd1d4,Bd4c4][%mdl 32]} Re5 {[%emt 0:00:48]} 27. Rxd4 {[%emt 0:00:55]} ({Much less strong is} 27. Qxd4 $6 Re1+ 28. Kg2 Rxd1 29. Qxd1 Qxd1 30. Bxd1 Re8 $16) 27... Qf6 {[%emt 0:00:54]} 28. Kg2 {[%emt 0:02:53]} Rd8 {[%emt 0:04:39]} 29. h4 {[%emt 0:06:43]} Qc6+ {[%emt 0:02:20]} 30. Kh2 {[%emt 0:00:12]} Qe8 {[%emt 0:05:07]} 31. Rc4 {[%emt 0:02:50]} Re7 {[%emt 0:00:29]} 32. Qc3 {[%emt 0:00:12]} Qb5 {[%emt 0:00:49] Inhibits Nh5.} (32... Kh8 $142 33. Rc5 Qf8) 33. Nh3 {[%emt 0:04:34] Strongly threatening Rc5.} Qb6 {[%emt 0:00:33]} (33... h6 $142 34. Nf4 Kh8) 34. Rg4 {[%emt 0:00:43] White is clearly winning.} Qh6 {[%emt 0:00:25]} 35. Ng5 {[%emt 0:00:44] Black must now prevent Rf4.} Rf8 {[%emt 0:00:39]} 36. Qc5 {[%emt 0:00:39]} (36. Rf4 $142 {Qc5 is the strong threat.} Qh5 37. Qb4) 36... Qb6 {[%emt 0:00:22]} 37. Qf5 {[%emt 0:01:30]} ({Weaker is} 37. Qxe7 Qxf2+ 38. Kh3 Qf1+ 39. Kh2 Qf2+ 40. Kh3 Qf1+ 41. Kh2 Qf2+ $11) 37... Qg6 {[%emt 0:00:30]} 38. Qxg6 {[%emt 0:00:21]} hxg6 {[%emt 0:00:01]} 39. Rf4 {[%emt 0:00:08] Weighted Error Value: White=0.58/Black=0.51.  Mistake:       	---       	Black=5      Inaccurate:     	White=2     	Black=4      OK:         	White=12    	Black=11     Best:        	White=2     	Black=1      Strong:       	White=2     	---} 1-0

[Event "Austrian Bundesliga 2023-24"]
[Site "Austria"]
[Date "2024.03.24"]
[Round "11.26"]
[White "Sebenik, Matej"]
[Black "Horvath, Dominik"]
[Result "1/2-1/2"]
[ECO "D70"]
[WhiteElo "2522"]
[BlackElo "2534"]
[Annotator "RC"]
[PlyCount "116"]
[EventDate "2023.10.21"]
[EventType "team-tourn"]
[EventCountry "AUT"]
[SourceTitle "playchess.com"]
[Source "ChessBase"]
[SourceQuality "1"]
[TimeControl "40/5400+30:1800+30"]

1. d4 Nf6 {[%emt 0:00:32]} 2. c4 {[%emt 0:00:38]} g6 {[%emt 0:00:46]} 3. Nf3 Bg7 4. g3 {[%emt 0:00:38]} c6 {[%emt 0:02:05]} 5. Bg2 {[%emt 0:02:04]} d5 {[%emt 0:00:23]} 6. cxd5 {[%emt 0:00:21]} cxd5 7. Ne5 {[%emt 0:00:06]} O-O {[%emt 0:04:18]} 8. Nc3 {[%emt 0:00:59]} Nc6 {[%emt 0:00:24]} 9. O-O {[%emt 0:00:30]} Bf5 {[%emt 0:00:04]} 10. Bf4 {[%emt 0:12:08]} Nh5 {[%emt 0:00:17]} 11. Nxc6 {[%emt 0:12:18]} bxc6 {[%emt 0:00:23]} 12. Be3 {[%emt 0:04:11]} c5 {[%emt 0:02:20]} 13. Nxd5 {[%emt 0:08:55]} e6 {[%emt 0:01:36]} 14. Nf4 {[%emt 0:00:13]} cxd4 {[%emt 0:01:05]} 15. Nxh5 {[%emt 0:02:23]} gxh5 {[%emt 0:00:28]} 16. Bxa8 {[%emt 0:06:17]} Qxa8 {[%emt 0:01:21]} 17. Bd2 {[%emt 0:00:34]} Bh3 {[%emt 0:05:53]} 18. f3 {[%emt 0:00:00]} Bxf1 {[%emt 0:00:23]} 19. Qxf1 {[%emt 0:03:44]} Qd5 {[%emt 0:04:42]} 20. b3 {[%emt 0:03:34]} h4 {[%emt 0:21:54]} 21. Rc1 {[%emt 0:00:26]} hxg3 {[%emt 0:00:11]} 22. hxg3 {[%emt 0:00:04]} h5 {[%emt 0:00:40]} 23. Rc4 {[%emt 0:05:29]} Rd8 {[%emt 0:08:05]} 24. Kg2 {[%emt 0:05:11]} Qf5 {[%emt 0:09:27]} 25. Qc1 {[%emt 0:00:08]} Rd5 {[%emt 0:02:01]} 26. Rc8+ {[%emt 0:05:15]} Kh7 {[%emt 0:00:29]} 27. Qc4 {[%emt 0:00:06]} h4 {[%emt 0:11:11]} 28. g4 {[%emt 0:20:02]} Qg6 {[%emt 0:02:30]} 29. Qd3 {[%emt 0:00:58]} Re5 {[%emt 0:05:06]} 30. Kf2 {[%emt 0:01:35]} f5 {[%emt 0:07:12]} 31. g5 {[%emt 0:04:03]} h3 {[%emt 0:01:57]} 32. Bf4 {[%emt 0:02:59]} Qh5 {[%emt 0:01:47]} 33. Rc7 {[%emt 0:00:21]} Rd5 {[%emt 0:02:03]} 34. Kg1 {[%emt 0:00:41]} Qh4 {[%emt 0:00:33]} 35. Qd2 {[%emt 0:00:25]} e5 {[%emt 0:01:37]} 36. Bh2 {[%emt 0:00:03]} d3 {[%emt 0:00:56]} 37. exd3 {[%emt 0:01:04]} f4 {[%emt 0:02:26]} 38. Qe2 {[%emt 0:00:22]} Qxg5+ {[%emt 0:00:11]} 39. Kh1 {[%emt 0:00:18]} Qg6 {[%emt 0:00:27]} 40. Qf1 {[%emt 0:00:00]} Qf5 {[%emt 0:00:00]} 41. Rxa7 {[%emt 0:09:16]} Rxd3 {[%emt 0:04:45]} 42. Rf7 {[%emt 0:03:29]} Qg6 {[%emt 0:12:38]} 43. Qxh3+ {[%emt 0:01:24]} Kg8 {[%emt 0:00:07]} 44. Rd7 {[%emt 0:05:00]} Rxd7 {[%emt 0:03:18]} 45. Qxd7 {[%emt 0:00:04]} Qb1+ {[%emt 0:00:04]} 46. Bg1 {[%emt 0:00:04]} Qxa2 {[%emt 0:00:07]} 47. Qd8+ {[%emt 0:00:05]} Bf8 {[%emt 0:02:46]} 48. Qd5+ {[%emt 0:04:45]} Kh7 {[%emt 0:00:04]} 49. Qe4+ {[%emt 0:00:13]} Kg8 {[%emt 0:01:02]} 50. Qg6+ {[%emt 0:00:59]} Bg7 {[%emt 0:01:07]} 51. Qe6+ {[%emt 0:01:34]} Kh7 {[%emt 0:00:48]} 52. Qd5 {[%emt 0:04:14]} Bf8 {[%emt 0:00:18]} 53. Qe4+ {[%emt 0:01:21]} Kg8 {[%emt 0:00:06]} 54. b4 {[%emt 0:02:51]} Qb3 {[%emt 0:02:18]} 55. Bc5 {[%emt 0:00:07]} Bxc5 {[%emt 0:01:34]} 56. bxc5 {[%emt 0:00:02]} Qd1+ {[%emt 0:00:36]} 57. Kg2 {[%emt 0:00:04]} Qd2+ {[%emt 0:00:04]} 58. Kh3 {[%emt 0:00:09]} Qd7+ {[%emt 0:00:03]} 1/2-1/2

[Event "Austrian Bundesliga 2023-24"]
[Site "Austria"]
[Date "2024.03.24"]
[Round "11.27"]
[White "Samunenkov, Ihor"]
[Black "Schreiner, Peter"]
[Result "1/2-1/2"]
[ECO "D85"]
[WhiteElo "2544"]
[BlackElo "2400"]
[Annotator "RC"]
[PlyCount "62"]
[EventDate "2023.10.21"]
[EventType "team-tourn"]
[EventCountry "AUT"]
[SourceTitle "playchess.com"]
[Source "ChessBase"]
[SourceQuality "1"]
[TimeControl "40/5400+30:1800+30"]

1. d4 {[%emt 0:00:05]} Nf6 {[%emt 0:00:06]} 2. c4 {[%emt 0:00:09]} g6 {[%emt 0:00:05]} 3. Nc3 {[%emt 0:00:11]} d5 {[%emt 0:00:07]} 4. cxd5 {[%emt 0:00:06]} Nxd5 {[%emt 0:00:05]} 5. Bd2 {[%emt 0:00:08]} Bg7 {[%emt 0:01:46]} 6. e4 {[%emt 0:00:10]} Nxc3 {[%emt 0:00:06]} 7. Bxc3 {[%emt 0:00:06]} O-O {[%emt 0:00:12]} 8. Qd2 {[%emt 0:00:07]} c5 {[%emt 0:00:11]} 9. d5 {[%emt 0:00:08]} e6 {[%emt 0:00:09]} 10. Bc4 {[%emt 0:00:37]} Bxc3 {[%emt 0:04:28]} 11. bxc3 {[%emt 0:00:13]} exd5 {[%emt 0:00:14]} 12. Bxd5 {[%emt 0:00:22]} Nd7 {[%emt 0:00:08]} 13. Nf3 {[%emt 0:02:51]} Nf6 {[%emt 0:00:24]} 14. O-O {[%emt 0:00:19]} Re8 {[%emt 0:00:46]} 15. Rfe1 {[%emt 0:02:00]} Bg4 {[%emt 0:02:27]} 16. c4 {[%emt 0:02:15]} Bxf3 {[%emt 0:03:11]} 17. gxf3 {[%emt 0:00:09]} Nh5 {[%emt 0:05:10]} 18. e5 {[%emt 0:19:03]} Kg7 {[%emt 0:05:40]} 19. Kh1 {[%emt 0:11:34]} Rc8 {[%emt 0:04:53]} 20. Rad1 {[%emt 0:18:16]} Rc7 {[%emt 0:09:01]} 21. a4 {[%emt 0:16:03]} b6 {[%emt 0:09:53]} 22. Qc3 {[%emt 0:07:57]} Qg5 {[%emt 0:09:23]} 23. Re4 {[%emt 0:04:28]} f5 {[%emt 0:02:29]} 24. Rg1 {[%emt 0:00:53]} Qe7 {[%emt 0:02:49]} 25. e6+ {[%emt 0:03:42]} Qf6 {[%emt 0:04:37]} 26. Re5 {[%emt 0:00:17]} Ree7 {[%emt 0:10:49]} 27. Qe3 {[%emt 0:01:55]} Kh8 {[%emt 0:05:11]} 28. Rg5 {[%emt 0:02:32]} Rg7 {[%emt 0:06:01]} 29. f4 {[%emt 0:03:24]} h6 {[%emt 0:01:13]} 30. Rg1 {[%emt 0:01:22]} Rge7 {[%emt 0:07:40]} 31. Qh3 {[%emt 0:02:36]} Kh7 {[%emt 0:01:25]} 1/2-1/2

[Event "Austrian Bundesliga 2023-24"]
[Site "Austria"]
[Date "2024.03.24"]
[Round "11.28"]
[White "Diermair, Andreas"]
[Black "Korpa, Bence"]
[Result "0-1"]
[ECO "C02"]
[WhiteElo "2434"]
[BlackElo "2545"]
[Annotator "TA"]
[PlyCount "72"]
[EventDate "2023.10.21"]
[EventType "team-tourn"]
[EventCountry "AUT"]
[SourceTitle "playchess.com"]
[Source "ChessBase"]
[SourceQuality "1"]
[TimeControl "40/5400+30:1800+30"]

{[%evp 21,72,33,34,23,18,0,0,0,0,0,0,-11,2,-17,0,0,19,-44,0,12,0,-37,-19,-131,-87,-258,-243,-386,-326,-320,-125,-797,-127,-732,-522,-561,-531,-684,-639,-779,-754,-737,-699,-1246,-1239,-29985,-29983,-29992,-29987,-29989,-1206,-29990,-29991]} 1. d4 {[%emt 0:00:04]} e6 {[%emt 0:00:26]} 2. e4 {[%emt 0:01:51]} d5 {[%emt 0:00:08]} 3. e5 {[%emt 0:00:28]} c5 {[%emt 0:00:26]} 4. c3 {[%emt 0:00:04]} Nc6 {[%emt 0:00:22]} 5. Nf3 {[%emt 0:00:03]} Bd7 {[%emt 0:00:56]} 6. Be2 {[%emt 0:01:43]} Qc7 {[%emt 0:05:29]} 7. O-O {[%emt 0:01:55]} f6 {[%emt 0:00:10]} 8. Re1 {[%emt 0:04:13]} fxe5 {[%emt 0:00:45]} 9. dxe5 {[%emt 0:00:42]} g6 {[%emt 0:06:39] C02: French: Advance Variation.} 10. c4 {[%emt 0:06:53]} d4 {[%emt 0:05:14]} 11. Bd3 {[%emt 0:02:07]} Bg7 {[%emt 0:08:24]} 12. Bf4 {[%emt 0:04:44]} Nh6 {[%emt 0:00:23]} 13. Na3 $146 {[%emt 0:19:46]} ({Predecessor:} 13. h3 O-O-O 14. Nbd2 Rdf8 15. Bh2 Nf7 16. Qe2 Rhg8 17. a3 Bh8 18. b4 h5 19. bxc5 {½-½ Ubaldo Suarez,M (2142)-Sanchez Castillo,S (2093) VEN-ch Maxima (Women) 2000 (5)}) 13... a6 {[%emt 0:08:48]} 14. Qd2 {[%emt 0:02:14]} Nf7 {[%emt 0:00:23]} 15. Nc2 {[%emt 0:00:37]} O-O {[%emt 0:01:23]} (15... Bxe5 $2 16. Rxe5 (16. Nxe5 Ncxe5 17. Qe2 Ke7 $18) 16... Ncxe5 (16... Nfxe5 $2 17. Nxe5 Nxe5 18. Qe2 $18) 17. Nxe5 Nxe5 18. Qe2 $18) (15... Nfxe5 $2 16. Nxe5 Nxe5 (16... Bxe5 $2 17. Rxe5 Nxe5 18. Qe2 $18) 17. Qe2 $18) 16. Bg3 {[%emt 0:00:41]} Rab8 {[%emt 0:16:04]} (16... Bxe5 $2 17. Nxe5 Nfxe5 18. Rxe5 (18. Qe2 Rxf2 19. Qxf2 Nxd3 $18) 18... Nxe5 19. Re1 $18) 17. h4 {[%emt 0:08:09]} b5 {[%emt 0:05:40]} (17... Nfxe5 $2 18. Nxe5 Nxe5 (18... Bxe5 $2 19. Rxe5 Nxe5 20. Re1 $18) 19. Qe2 $18) (17... Bxe5 $2 18. Rxe5 (18. Nxe5 Ncxe5 19. h5 Nf3+ 20. gxf3 e5 $18) 18... Ncxe5 (18... Nfxe5 $2 19. Nxe5 Nxe5 20. Re1 $18) 19. Nxe5 Nxe5 20. Re1 Nf3+ 21. gxf3 $18) (17... Ncxe5 $2 18. Nxe5 Nxe5 19. Qe2 $18) 18. b3 {[%emt 0:00:18]} Ne7 {[%emt 0:02:15] [#]} (18... Bxe5 $2 19. Nxe5 Ncxe5 20. Qe2 $18) 19. h5 {[%emt 0:04:39]} ({White should play} 19. b4 $1 $11) 19... Nf5 {[%emt 0:03:06]} 20. hxg6 {[%emt 0:02:42]} hxg6 {[%emt 0:00:07]} 21. Qf4 {[%emt 0:08:34]} Bc6 {[%emt 0:06:57]} 22. Qg4 {[%emt 0:01:39]} (22. Bh2 $11 {keeps the balance.}) 22... Bxf3 {[%emt 0:13:04]} 23. Qxg6 $2 {[%emt 0:09:10]} (23. Qxf3 $17 {might work better.} Nxe5 (23... Bxe5 24. Bxe5 Nxe5 25. Qf4 $19) 24. Bxe5 Bxe5 25. g3) 23... Ba8 $19 {[%emt 0:01:55]} 24. Qxe6 {[%emt 0:11:48]} (24. Re2 $142) 24... Nxg3 {[%emt 0:00:50]} 25. Qg6 {[%emt 0:00:54]} Nxe5 $2 {[%emt 0:08:00]} (25... Be4 $19 {is more deadly.} 26. Rxe4 Nxe4 27. Bxe4 Nxe5 28. Qh7+ Kf7 29. cxb5 Rh8 (29... axb5 $2 30. f4 $19) 30. Qf5+ Ke7) 26. Qh7+ $17 {[%emt 0:00:09]} Kf7 {[%emt 0:00:05]} 27. fxg3 $2 {[%emt 0:00:32][%mdl 8192]} (27. Rxe5 $17 Qxe5 28. Qg6+ Ke7 29. Re1) 27... Rb6 {[%emt 0:03:49]} 28. Qh5+ {[%emt 0:01:23]} Ke7 {[%emt 0:00:14]} 29. Re2 {[%emt 0:04:20]} Kd8 {[%emt 0:00:33]} 30. Rae1 {[%emt 0:00:06]} Re6 {[%emt 0:00:26]} ({Inferior is} 30... Nxd3 31. Re8+ Kd7 32. R1e7+ Kd6 33. Qg6+ Bf6 34. Re6+ (34. Rxc7 Ne5 $18) 34... Kd7 35. Qh7+ (35. Rxf8 $2 Rxe6 36. Rxa8 Qb7 $19) (35. Rxf8 $2 Rxe6 36. Rxa8 Qb7 $19)) 31. Qg5+ {[%emt 0:01:14]} Qe7 {[%emt 0:00:51]} 32. Qd2 {[%emt 0:00:32]} b4 {[%emt 0:00:50]} 33. g4 {[%emt 0:01:09]} Bh6 {[%emt 0:00:53]} 34. Qd1 {[%emt 0:00:06]} Bf4 {[%emt 0:00:27]} 35. Bf5 {[%emt 0:00:18]} Rd6 {[%emt 0:00:07]} (35... Qh4 $142 36. Re4 Qh2+ 37. Kf1 Bxe4 38. Rxe4 Qh1+ 39. Kf2 Qxd1 40. Rxf4 Nd3+ (40... Nxg4+ {gets mated.} 41. Kg3 Rxf5 42. Rxf5 Qxc2 43. Rh5 Ne3 44. Rh8+ Ke7 45. Rh2 Rg6+ 46. Kf3 Qf5+ 47. Ke2 Qf1+ 48. Kd2 Qd1#) (40... Rxf5 41. gxf5 Qxc2+ 42. Kg3 Re8 43. Kh3 Rh8+ 44. Kg3 Rg8+ 45. Kh4 Qxg2 46. Rxd4+ cxd4 47. Kh5 Rh8#) 41. Kg3 Nxf4 (41... Qxc2 42. Bxd3 Qxd3+ 43. Rf3 Re3 44. Kh4 Rexf3 45. gxf3 Qxf3 46. Kh5 Rg8 47. Kh6 Qh3#) 42. Kxf4 Qxc2 43. Kg3 Qc3+ (43... Qxa2 {leads to mate.} 44. Kh2 Qf2 45. g5 Rh8+ 46. Bh3 Re2 47. Kh1 Qxg2#) 44. Kh2 Rh6+ 45. Kg1 Qe1#) 36. a3 {[%emt 0:01:36]} Qh4 {[%emt 0:00:16]} 0-1

[Event "Austrian Bundesliga 2023-24"]
[Site "Austria"]
[Date "2024.03.24"]
[Round "11.29"]
[White "Mesaros, Florian"]
[Black "Dotzer, Lukas"]
[Result "1-0"]
[ECO "D45"]
[WhiteElo "2414"]
[BlackElo "2338"]
[Annotator "RC"]
[PlyCount "127"]
[EventDate "2023.10.21"]
[EventType "team-tourn"]
[EventCountry "AUT"]
[SourceTitle "playchess.com"]
[Source "ChessBase"]
[SourceQuality "1"]
[TimeControl "40/5400+30:1800+30"]

1. Nf3 {[%emt 0:00:23]} Nf6 {[%emt 0:00:05]} 2. c4 {[%emt 0:00:11]} e6 {[%emt 0:00:05]} 3. Nc3 {[%emt 0:00:12]} d5 {[%emt 0:00:05]} 4. d4 {[%emt 0:00:09]} c6 {[%emt 0:00:07]} 5. e3 {[%emt 0:00:16]} Nbd7 {[%emt 0:00:08]} 6. Qc2 {[%emt 0:00:42]} b6 {[%emt 0:00:05]} 7. Bd3 {[%emt 0:02:18]} Bb7 {[%emt 0:05:39]} 8. O-O {[%emt 0:02:12]} dxc4 {[%emt 0:09:02]} 9. Bxc4 {[%emt 0:00:12]} c5 {[%emt 0:04:47]} 10. Ne5 {[%emt 0:15:40]} Bd6 {[%emt 0:16:51]} 11. f4 {[%emt 0:05:00]} O-O {[%emt 0:10:04]} 12. Bd2 {[%emt 0:02:57]} cxd4 {[%emt 0:15:17]} 13. exd4 {[%emt 0:01:03]} Nxe5 {[%emt 0:01:35]} 14. fxe5 {[%emt 0:04:47]} Bxe5 {[%emt 0:01:28]} 15. dxe5 {[%emt 0:02:13]} Qd4+ {[%emt 0:00:14]} 16. Kh1 {[%emt 0:06:25]} Ng4 {[%emt 0:00:21]} 17. Nb5 {[%emt 0:18:59]} Nf2+ {[%emt 0:03:11]} 18. Rxf2 {[%emt 0:00:14]} Qxf2 {[%emt 0:00:05]} 19. Bf1 {[%emt 0:09:06]} f6 {[%emt 0:08:47]} 20. Qc1 {[%emt 0:06:02]} Rac8 {[%emt 0:08:08]} 21. Qe1 {[%emt 0:02:27]} fxe5 {[%emt 0:03:32]} 22. Bc3 {[%emt 0:05:34]} Bd5 {[%emt 0:04:26]} 23. Qxf2 {[%emt 0:06:42]} Rxf2 {[%emt 0:00:13]} 24. Kg1 {[%emt 0:00:59]} Rcf8 {[%emt 0:01:24]} 25. a4 {[%emt 0:04:04]} e4 {[%emt 0:03:56]} 26. Re1 {[%emt 0:01:04]} e3 {[%emt 0:01:29]} 27. Nd4 {[%emt 0:01:39]} e2 {[%emt 0:02:12]} 28. Nxe2 {[%emt 0:00:50]} Bc4 {[%emt 0:00:17]} 29. Ng3 {[%emt 0:01:06]} Bxf1 {[%emt 0:00:52]} 30. Nxf1 {[%emt 0:01:00]} R2f4 {[%emt 0:00:24]} 31. a5 {[%emt 0:00:53]} b5 {[%emt 0:00:38]} 32. Nd2 {[%emt 0:00:30]} b4 {[%emt 0:00:28]} 33. Be5 {[%emt 0:00:18]} Rf2 {[%emt 0:00:26]} 34. Nf3 {[%emt 0:00:24]} Rc2 {[%emt 0:00:07]} 35. Re4 {[%emt 0:01:23]} Rd8 {[%emt 0:00:45]} 36. h3 {[%emt 0:00:00]} Rd1+ {[%emt 0:00:36]} 37. Kh2 {[%emt 0:00:26]} Rf1 {[%emt 0:00:26]} 38. Kg3 {[%emt 0:00:22]} Rff2 {[%emt 0:00:32]} 39. Rxb4 {[%emt 0:00:13]} Rxg2+ {[%emt 0:00:09]} 40. Kf4 {[%emt 0:00:00]} Rc8 {[%emt 0:00:00]} 41. Rb7 {[%emt 0:03:23]} Rf8+ {[%emt 0:04:49]} 42. Ke3 {[%emt 0:00:39]} Rf7 {[%emt 0:05:07]} 43. a6 {[%emt 0:01:19]} Rc2 {[%emt 0:01:04]} 44. Ng5 {[%emt 0:03:30]} Rf5 {[%emt 0:05:25]} 45. Rxg7+ {[%emt 0:02:31]} Kf8 {[%emt 0:00:07]} 46. Nxe6+ {[%emt 0:09:34]} Ke8 {[%emt 0:00:14]} 47. Ke4 {[%emt 0:04:03]} Rf7 {[%emt 0:01:25]} 48. Rg8+ {[%emt 0:00:30]} Kd7 {[%emt 0:00:33]} 49. Kd5 {[%emt 0:05:58]} Rd2+ {[%emt 0:01:51]} 50. Nd4 {[%emt 0:00:08]} Rxb2 {[%emt 0:01:14]} 51. Ra8 {[%emt 0:00:13]} Ra2 {[%emt 0:00:44]} 52. Rxa7+ {[%emt 0:00:41]} Ke8 {[%emt 0:00:11]} 53. Ra8+ {[%emt 0:00:35]} Kd7 {[%emt 0:00:08]} 54. a7 {[%emt 0:03:39]} Re7 {[%emt 0:03:47]} 55. Nc6 {[%emt 0:01:10]} Re8 {[%emt 0:01:47]} 56. Rxe8 {[%emt 0:00:14]} Kxe8 {[%emt 0:00:08]} 57. Bc3 {[%emt 0:00:17]} Ra6 {[%emt 0:00:45]} 58. Kc5 {[%emt 0:00:18]} Kf7 {[%emt 0:00:23]} 59. Kb5 {[%emt 0:00:16]} Rxa7 {[%emt 0:00:07]} 60. Nxa7 {[%emt 0:00:06]} Ke6 {[%emt 0:00:13]} 61. Kc6 {[%emt 0:00:13]} Kf5 {[%emt 0:00:08]} 62. Kd5 {[%emt 0:00:11]} Kf4 {[%emt 0:00:24]} 63. Bf6 {[%emt 0:00:10]} Kg3 {[%emt 0:00:08]} 64. h4 {[%emt 0:00:05]} 1-0

[Event "Austrian Bundesliga 2023-24"]
[Site "Austria"]
[Date "2024.03.24"]
[Round "11.30"]
[White "Hoefelsauer, Thomas"]
[Black "Gschnitzer, Adrian"]
[Result "0-1"]
[ECO "D02"]
[WhiteElo "2302"]
[BlackElo "2423"]
[Annotator "TA"]
[PlyCount "78"]
[EventDate "2023.10.21"]
[EventType "team-tourn"]
[EventCountry "AUT"]
[SourceTitle "playchess.com"]
[Source "ChessBase"]
[SourceQuality "1"]
[TimeControl "40/5400+30:1800+30"]

{[%evp 9,78,-2,4,0,0,-16,-18,-22,-18,-17,-6,-18,-24,-22,-11,-20,-32,-25,-18,-34,-4,-36,-43,-73,-80,-90,-79,-92,-80,-100,-101,-93,-80,-99,-39,-197,-210,-206,-209,-245,-241,-253,-247,-240,-241,-289,-285,-287,-256,-251,0,-289,-268,-315,-317,-324,-304,-364,-348,-353,-350,-383,-379,-341,-295,-435,-456,-488,-395,-367,-367]} 1. d4 {[%emt 0:00:02]} d5 {[%emt 0:00:08]} 2. Nf3 {[%emt 0:00:11]} e6 {[%emt 0:00:13]} 3. Bf4 {[%emt 0:00:33]} c5 {[%emt 0:00:50]} 4. c3 {[%emt 0:01:09]} Nf6 {[%emt 0:00:50]} 5. e3 {[%emt 0:00:23]} Bd6 {[%emt 0:01:07]} 6. Nbd2 {[%emt 0:00:28]} cxd4 {[%emt 0:00:50]} 7. cxd4 {[%emt 0:10:10]} Bxf4 {[%emt 0:00:34]} 8. exf4 {[%emt 0:00:02] The position is equal.} Qb6 {[%emt 0:00:37]} 9. Qb3 {[%emt 0:03:22]} Nc6 {[%emt 0:01:44]} 10. Qxb6 {[%emt 0:02:27]} axb6 {[%emt 0:00:03]} 11. a3 {[%emt 0:00:52]} Bd7 {[%emt 0:00:35]} 12. Rc1 {[%emt 0:01:00]} Ke7 {[%emt 0:02:33]} 13. Bd3 {[%emt 0:01:11]} Rhc8 {[%emt 0:01:23]} 14. Ke2 {[%emt 0:01:26]} Na7 {[%emt 0:01:03]} 15. Ne5 {[%emt 0:10:53]} Bb5 {[%emt 0:01:16]} 16. f3 {[%emt 0:01:41]} Ne8 {[%emt 0:03:09]} 17. Nb3 {[%emt 0:07:14]} Nd6 {[%emt 0:06:55]} 18. Bxb5 {[%emt 0:11:09]} Naxb5 {[%emt 0:00:14]} 19. g4 {[%emt 0:00:37]} f6 {[%emt 0:15:51]} 20. Nd3 {[%emt 0:00:11]} Rc4 {[%emt 0:00:23]} 21. Ke3 {[%emt 0:06:21]} Rac8 {[%emt 0:01:08] Black is more active.} (21... h6 $17 22. Rhe1 Rxc1 23. Rxc1 Nc4+ 24. Ke2 Ra4) 22. Rhe1 $2 {[%emt 0:15:36] [#]} ({Better is} 22. Nd2 $1 $15) 22... Rxc1 $1 $19 {[%emt 0:06:15]} 23. Rxc1 {[%emt 0:04:50]} Rxc1 {[%emt 0:00:38]} 24. Ndxc1 {[%emt 0:01:35][%mdl 4096] Endgame. KNN-KNN} Nc4+ {[%emt 0:00:17]} 25. Kd3 {[%emt 0:00:11]} Nxb2+ {[%emt 0:00:18]} 26. Kc2 {[%emt 0:00:16]} Na4 {[%emt 0:00:50]} ({And not} 26... Nxa3+ 27. Kxb2 Nc4+ 28. Kc3 $16) 27. Nd3 {[%emt 0:03:18]} Nxa3+ {[%emt 0:01:12]} 28. Kd2 {[%emt 0:00:30]} Nc4+ {[%emt 0:01:21]} 29. Kc2 {[%emt 0:00:52]} Na3+ {[%emt 0:04:36]} 30. Kd2 $1 {[%emt 0:00:12]} Kd6 {[%emt 0:02:54]} 31. Nb4 {[%emt 0:00:29]} Nb2 {[%emt 0:03:18]} 32. h4 {[%emt 0:00:29]} Nb5 {[%emt 0:02:20]} 33. g5 {[%emt 0:00:40]} Nc4+ {[%emt 0:09:03]} 34. Kd3 {[%emt 0:00:10]} Na5 {[%emt 0:00:31]} 35. Nd2 {[%emt 0:00:12]} Nc6 {[%emt 0:00:31]} 36. Nc2 {[%emt 0:00:06]} Ne7 {[%emt 0:05:52]} 37. h5 {[%emt 0:01:31]} (37. Ne3 $142) 37... Nf5 {[%emt 0:02:03]} 38. Nf1 {[%emt 0:00:13]} h6 {[%emt 0:02:54]} 39. gxh6 {[%emt 0:02:09]} gxh6 {[%emt 0:01:15] Weighted Error Value: White=0.21 (precise) /Black=0.18 (very precise) .  Mistake:       	White=2     	Black=1      Inaccurate:     	White=2     	Black=1      OK:         	White=13    	Black=19     Best:        	White=1     	Black=1      Strong:       	White=1     	Black=1} 0-1